[Event "US Masters 2024"]
[Site "Charlotte"]
[Date "2024.11.28"]
[Round "1.19"]
[White "Stremavicius, Titas"]
[Black "Kung, Thomas"]
[Result "1-0"]
[ECO "A07"]
[WhiteElo "2545"]
[BlackElo "2180"]
[Annotator "TA"]
[PlyCount "113"]
[EventDate "2024.09.23"]
[EventType "swiss"]
[EventCountry "USA"]
[SourceTitle "playchess.com"]
[Source "ChessBase"]
[SourceQuality "1"]
[TimeControl "5400+30"]

{[%evp 9,113,21,31,18,21,8,14,8,2,12,40,41,54,67,58,61,39,34,51,66,104,78,72,79,66,79,72,79,77,75,66,65,87,87,84,74,81,93,142,144,122,142,130,124,155,153,153,141,168,164,167,136,126,137,138,139,137,137,166,136,137,137,177,182,171,191,227,188,271,295,307,233,250,251,251,250,358,343,455,447,1038,462,513,455,359,0,493,598,614,691,706,706,698,691,787,682,1526,1374,1651,4449,6127,6065,29974,29975,29968,29972]} 1. Nf3 {[%emt 0:00:05]} d5 {[%emt 0:03:24]} 2. g3 {[%emt 0:00:13]} c6 {[%emt 0:00:27]} 3. Bg2 {[%emt 0:00:12]} Bg4 {[%emt 0:01:35]} 4. h3 {[%emt 0:00:43]} Bh5 {[%emt 0:00:52]} 5. d4 {[%emt 0:00:22]} Nd7 {[%emt 0:01:53] [#]} 6. c4 $1 {[%emt 0:00:17]} e6 {[%emt 0:00:17]} 7. cxd5 {[%emt 0:00:15]} exd5 {[%emt 0:01:04]} 8. Nc3 {[%emt 0:00:13] The position is equal.} Ngf6 {[%emt 0:04:55]} 9. Ne5 {[%emt 0:00:28]} Ne4 {[%emt 0:01:45]} 10. Nxe4 {[%emt 0:27:59]} Nxe5 {[%emt 0:06:53]} 11. dxe5 {[%emt 0:02:20]} dxe4 {[%emt 0:00:15]} 12. Qa4 {[%emt 0:07:11]} (12. Bxe4 Bb4+ 13. Bd2 Qd4 $11) 12... Qb6 {[%emt 0:37:53] Inhibits Be3.} 13. Bxe4 {[%emt 0:07:27]} Bb4+ {[%emt 0:09:42]} 14. Kf1 {[%emt 0:00:08]} O-O {[%emt 0:02:40]} 15. Be3 {[%emt 0:05:45][%cal Bc1e3,Be3d4,Bd4c3][%mdl 32]} Bc5 {[%emt 0:02:13] [#]} 16. Bxh7+ $1 {[%emt 0:08:36]} Kxh7 {[%emt 0:04:52]} 17. Qc2+ {[%emt 0:00:05]} Bg6 {[%emt 0:00:16]} 18. Qxc5 {[%emt 0:00:04]} Qxb2 {[%emt 0:00:43]} 19. Bd4 $36 {[%emt 0:00:05][%mdl 2048] White is on the roll.} Qd2 {[%emt 0:05:31]} 20. Bc3 {[%emt 0:05:45]} Qc2 {[%emt 0:03:27]} 21. f3 {[%emt 0:00:46]} Rfd8 {[%emt 0:03:13]} 22. Kf2 {[%emt 0:03:16]} b6 {[%emt 0:06:11]} 23. Qb4 {[%emt 0:00:29]} (23. Qxc6 $2 {perishes.} Rac8 24. Qb5 Bd3 $19 (24... Rxc3 $2 25. Rac1 $19) (24... Qxc3 $2 25. Rhd1 $19)) 23... c5 {[%emt 0:00:41] [#]} (23... Bd3 $142 24. Qb2 c5) 24. Qh4+ $1 $16 {[%emt 0:00:38]} Kg8 {[%emt 0:00:02]} 25. Rhc1 {[%emt 0:00:21]} Qf5 {[%emt 0:00:14]} 26. g4 {[%emt 0:01:09]} Qf4 {[%emt 0:01:27]} 27. Qg3 {[%emt 0:00:09]} Qxg3+ {[%emt 0:00:53]} 28. Kxg3 {[%emt 0:00:04]} b5 {[%emt 0:00:27]} 29. Ba5 {[%emt 0:01:10][%csl LRc5,LRd8]} Rd5 {[%emt 0:00:39]} 30. e4 {[%emt 0:00:13]} Rxe5 {[%emt 0:00:30]} 31. Bc7 {[%emt 0:00:27]} Re7 {[%emt 0:00:22]} 32. Rxc5 {[%emt 0:00:15]} Rc8 {[%emt 0:00:25]} 33. Rac1 {[%emt 0:00:13]} f6 {[%emt 0:00:40]} 34. Bd6 {[%emt 0:04:42]} Rxc5 {[%emt 0:00:06]} 35. Rxc5 {[%emt 0:00:04][%mdl 4096] Endgame. KRB-KRB} Rd7 {[%emt 0:00:53]} 36. e5 {[%emt 0:00:04]} fxe5 {[%emt 0:00:15]} 37. Bxe5 {[%emt 0:00:12]} Rb7 {[%emt 0:00:46]} 38. f4 {[%emt 0:01:28][%cal Bf3f4,Bf4f5][%mdl 32]} Bf7 {[%emt 0:00:30]} (38... Bb1 $142 39. f5 g6) 39. a3 $18 {[%emt 0:00:03]} a5 {[%emt 0:00:36]} 40. Kh4 {[%emt 0:01:55]} Be8 {[%emt 0:00:29]} 41. f5 {[%emt 0:01:19]} Re7 {[%emt 0:00:27]} 42. Kg5 {[%emt 0:02:09]} Rb7 {[%emt 0:00:33]} (42... b4 $142 43. Rxa5 bxa3) 43. h4 {[%emt 0:00:24][%cal Bh3h4,Bh4h5][%mdl 32]} ({Resist} 43. Rc8 Re7 $18) 43... Kf7 {[%emt 0:00:21]} 44. h5 {[%emt 0:00:16] Kf4 would now be deadly.} Ra7 {[%emt 0:00:36]} (44... b4 $142 45. Rxa5 b3) 45. Bc3 {[%emt 0:01:04]} (45. f6 $142 gxf6+ 46. Bxf6) 45... Bd7 {[%emt 0:00:23]} 46. Rd5 {[%emt 0:00:40]} Bc6 {[%emt 0:00:37]} 47. Rc5 {[%emt 0:00:32]} Bd7 {[%emt 0:00:21]} 48. Kf4 {[%emt 0:00:13] And now g5 would win.} ({Weaker is} 48. h6 gxh6+ 49. Kxh6 Ra6+ 50. Kh7 b4) 48... b4 {[%emt 0:00:42]} 49. axb4 {[%emt 0:00:11]} axb4 {[%emt 0:00:17]} 50. Bxb4 {[%emt 0:00:07] aiming for g5.} Ra4 {[%emt 0:00:25]} 51. Rc4 {[%emt 0:00:03] Hoping for g5.} Bb5 {[%emt 0:00:46]} 52. Re4 {[%emt 0:00:08] Black must now prevent g5.} Bd3 {[%emt 0:00:28]} 53. Re7+ {[%emt 0:00:41]} Kg8 {[%emt 0:00:33]} 54. Rb7 {[%emt 0:00:22]} Be2 {[%emt 0:00:21]} 55. g5 {[%emt 0:00:36][%cal Bg4g5,Bg5g6][%mdl 32]} Bxh5 {[%emt 0:00:38]} 56. g6 {[%emt 0:00:06][%cal Rb7b8]} Ra8 {[%emt 0:00:27]} 57. Bc3 {[%emt 0:00:04] Weighted Error Value: White=0.24 (precise) /Black=0.33.  Mistake:       	White=1     	Black=4      Inaccurate:     	---       	Black=3      OK:         	White=25    	Black=15     Best:        	White=2     	Black=4      Strong:       	White=1     	---} 1-0

[Event "US Masters 2024"]
[Site "Charlotte"]
[Date "2024.11.28"]
[Round "1.20"]
[White "Girsh, Daniel"]
[Black "Brodsky, David"]
[Result "0-1"]
[ECO "B92"]
[WhiteElo "2180"]
[BlackElo "2538"]
[Annotator "TA"]
[PlyCount "74"]
[EventDate "2024.09.23"]
[EventType "swiss"]
[EventCountry "USA"]
[SourceTitle "playchess.com"]
[Source "ChessBase"]
[SourceQuality "1"]
[TimeControl "5400+30"]

{[%evp 18,74,10,12,6,12,12,-16,-13,-22,-8,-16,7,0,0,0,0,0,0,0,0,0,0,0,15,33,10,-19,0,8,0,0,0,-119,-100,-93,-118,-89,-85,-154,-149,-151,-152,-180,-148,-286,-270,-412,-384,-1096,-1067,-1533,-1438,-29993,-29994,-29994,-29995,-29996,-29997]} 1. e4 {[%emt 0:00:18]} c5 {[%emt 0:00:04]} 2. Nf3 {[%emt 0:00:06]} d6 {[%emt 0:00:05]} 3. d4 {[%emt 0:00:06]} cxd4 {[%emt 0:00:02]} 4. Nxd4 {[%emt 0:00:06]} Nf6 {[%emt 0:00:03]} 5. Nc3 {[%emt 0:00:08]} a6 {[%emt 0:00:05]} 6. Be2 {[%emt 0:00:38]} e5 {[%emt 0:00:07]} 7. Nb3 {[%emt 0:00:04]} Be7 {[%emt 0:00:08]} 8. Be3 {[%emt 0:00:04]} Be6 {[%emt 0:00:04]} 9. Nd5 {[%emt 0:00:04]} Nbd7 {[%emt 0:00:10]} 10. Qd3 {[%emt 0:01:03]} O-O {[%emt 0:00:07]} 11. c4 {[%emt 0:00:27]} b5 {[%emt 0:01:48]} 12. cxb5 {[%emt 0:01:02]} axb5 {[%emt 0:02:13] The position is equal.} 13. O-O $1 {[%emt 0:00:06]} Bxd5 {[%emt 0:07:02]} 14. exd5 {[%emt 0:00:08]} b4 {[%emt 0:00:03]} 15. Rfd1 {[%emt 0:14:45]} Qb8 {[%emt 0:14:57]} 16. Qb5 {[%emt 0:18:59]} Bd8 {[%emt 0:02:03]} 17. a4 {[%emt 0:11:00] Hoping for a5.} bxa3 {[%emt 0:02:48]} 18. bxa3 {[%emt 0:01:11]} Bb6 {[%emt 0:01:23]} 19. Bxb6 {[%emt 0:05:39]} Nxb6 {[%emt 0:04:38]} 20. a4 {[%emt 0:01:26]} Qa7 {[%emt 0:02:20][%cal Of8b8] ...Rfb8! is the strong threat.} 21. a5 {[%emt 0:04:24]} Nbd7 {[%emt 0:01:08]} 22. Nd2 {[%emt 0:03:19] Prevents Ne4.} Rfc8 {[%emt 0:04:35]} 23. a6 {[%emt 0:04:48]} Nc5 {[%emt 0:05:44] Prevents Qb7.} 24. Qa5 {[%emt 0:16:36]} Rab8 {[%emt 0:04:59]} 25. Nc4 {[%emt 0:02:45]} (25. g3 $11) 25... Nb3 $1 $17 {[%emt 0:06:40][%csl LRa1,LRa5] Excellent horsemanship.} 26. Qe1 {[%emt 0:00:15][%cal Oc4d6] [#] Strongly threatening Nxd6!} Nxa1 27. Rxa1 {[%emt 0:01:18]} Qc7 {[%emt 0:02:37]} 28. Ra5 {[%emt 0:00:45]} (28. g3 $142) 28... Ra8 {[%emt 0:01:46]} 29. h4 {[%emt 0:00:48]} g6 {[%emt 0:03:00]} 30. Qb4 {[%emt 0:02:01]} Ne4 {[%emt 0:01:05] White must now prevent ...Rcb8.} 31. Qb7 {[%emt 0:02:42] [#]} (31. Qb6 $17) 31... Qd8 $1 $19 {[%emt 0:01:14]} 32. a7 {[%emt 0:00:27] Inhibits Rcb8.} (32. Qb6 $142) 32... Qxh4 {[%emt 0:01:51]} 33. g3 $2 {[%emt 0:00:07]} (33. Qb6 Nc3 34. Bf1 Rxc4 35. Bxc4 Qxc4 36. Qc6 (36. Qb8+ $2 Kg7 $19) 36... Ne2+ 37. Kf1 Ng3+ 38. Kg1 Qxc6 39. dxc6) 33... Qf6 {[%emt 0:00:17]} 34. f3 {[%emt 0:00:05]} Nxg3 {[%emt 0:01:03]} 35. Nb6 {[%emt 0:00:33]} Nxe2+ {[%emt 0:00:17] Black mates.} 36. Kf2 {[%emt 0:00:03]} Nd4 {[%emt 0:00:28]} 37. Ra3 {[%emt 0:01:11]} Qh4+ {[%emt 0:00:27] Weighted Error Value: White=0.93/Black=0.04 (flawless) .  Mistake:       	White=5     	---        Inaccurate:     	White=3     	Black=1      OK:         	White=6     	Black=8      Best:        	White=2     	Black=4      Strong:       	White=1     	Black=1} 0-1

[Event "US Masters 2024"]
[Site "Charlotte"]
[Date "2024.11.28"]
[Round "1.21"]
[White "Harsha Bharathakoti"]
[Black "Sriniaiyer, Sudarshan"]
[Result "1/2-1/2"]
[ECO "D35"]
[WhiteElo "2531"]
[BlackElo "2179"]
[Annotator "TA"]
[PlyCount "152"]
[EventDate "2024.09.23"]
[EventType "swiss"]
[EventCountry "USA"]
[SourceTitle "playchess.com"]
[Source "ChessBase"]
[SourceQuality "1"]
[TimeControl "5400+30"]

{[%evp 15,152,9,19,10,22,37,30,50,39,31,54,27,24,17,22,16,17,0,0,0,0,0,10,0,0,0,0,-9,-10,-14,-12,-12,-7,-8,0,-5,-5,-5,0,-5,-5,-5,-5,-5,71,0,0,-5,-4,-5,-5,-30,-21,-15,-5,-5,-5,-41,-39,-39,0,-2,0,0,0,0,12,0,0,0,0,0,0,0,43,26,86,87,87,112,110,100,264,282,297,297,439,333,326,254,331,324,288,185,225,162,141,141,325,345,293,316,287,137,125,136,202,210,210,202,193,187,160,103,227,0,0,0,0,0,0,0,0,0,0,0,0,0,0,0,0,0,0,0,0,0,0,0,0]} 1. d4 {[%emt 0:02:23]} Nf6 {[%emt 0:03:08]} 2. c4 {[%emt 0:00:08]} e6 {[%emt 0:00:28]} 3. Nc3 {[%emt 0:00:13]} d5 {[%emt 0:01:58]} 4. cxd5 {[%emt 0:00:05]} exd5 {[%emt 0:00:06]} 5. Bg5 {[%emt 0:00:05][%cal Bc1g5,Bg5h4,Bh4g3][%mdl 32]} c6 {[%emt 0:01:13]} 6. e3 {[%emt 0:00:52]} h6 {[%emt 0:01:41]} 7. Bh4 {[%emt 0:00:21]} Be7 {[%emt 0:00:24]} 8. Bd3 {[%emt 0:01:21]} O-O {[%emt 0:01:12]} 9. Nge2 {[%emt 0:02:19]} Ne8 {[%emt 0:00:49]} 10. Bg3 {[%emt 0:00:07]} Nd6 {[%emt 0:01:18]} 11. Qc2 {[%emt 0:00:43] White has an edge.} Re8 {[%emt 0:02:08]} 12. O-O {[%emt 0:01:36]} Bf8 {[%emt 0:03:00]} 13. Rad1 {[%emt 0:05:58]} Nd7 {[%emt 0:02:57]} 14. h3 {[%emt 0:05:20]} a5 {[%emt 0:09:10]} 15. Rfe1 {[%emt 0:08:29]} Nf6 {[%emt 0:07:42]} 16. Bh4 {[%emt 0:12:47]} g6 {[%emt 0:16:05]} 17. Bg3 {[%emt 0:08:45]} Bf5 {[%emt 0:03:00]} 18. Nf4 {[%emt 0:00:05]} Bxd3 {[%emt 0:10:54]} 19. Nxd3 {[%emt 0:00:32]} Nfe4 {[%emt 0:00:15]} 20. Bf4 {[%emt 0:02:49]} Nxc3 {[%emt 0:08:33]} 21. Qxc3 {[%emt 0:00:23]} a4 {[%emt 0:00:50]} 22. Qc2 {[%emt 0:00:51]} Nc4 {[%emt 0:12:59]} 23. Re2 {[%emt 0:10:22]} Qh4 {[%emt 0:01:18]} 24. Rde1 {[%emt 0:06:28]} Bd6 {[%emt 0:01:25]} 25. Bxd6 {[%emt 0:01:12]} Nxd6 {[%emt 0:00:03]} 26. Nc5 {[%emt 0:00:02]} a3 {[%emt 0:00:40]} 27. b3 {[%emt 0:00:35]} Re7 {[%emt 0:00:34]} 28. Qc1 {[%emt 0:00:03]} Kg7 {[%emt 0:00:48]} 29. Rc2 {[%emt 0:01:51]} Rae8 {[%emt 0:02:02]} (29... Ree8 $11 {remains equal.}) 30. Rf1 {[%emt 0:07:34]} ({White should try} 30. Qxa3 $16 Nf5 31. Rd1) 30... Nb5 {[%emt 0:00:50]} 31. Qd1 {[%emt 0:00:06]} Qf6 {[%emt 0:02:16]} 32. Qg4 {[%emt 0:02:24]} h5 {[%emt 0:00:27]} 33. Qg3 {[%emt 0:00:04]} Nd6 {[%emt 0:00:43]} 34. Nd3 {[%emt 0:01:47]} Nf5 {[%emt 0:01:59]} 35. Qf3 {[%emt 0:01:05]} Qg5 {[%emt 0:00:06]} 36. Qf4 {[%emt 0:00:05] Wards off Nh4} Qxf4 {[%emt 0:02:04]} 37. Nxf4 {[%emt 0:00:05]} Kh6 {[%emt 0:00:12]} 38. Rc5 {[%emt 0:01:46]} Nd6 {[%emt 0:01:11]} 39. Ra5 {[%emt 0:00:41]} g5 {[%emt 0:00:43]} 40. Nd3 {[%emt 0:03:40]} Nb5 {[%emt 0:00:32]} 41. h4 {[%emt 0:02:28]} gxh4 {[%emt 0:01:30]} 42. Kh2 {[%emt 0:03:17]} f6 {[%emt 0:01:00]} 43. Rc1 {[%emt 0:02:44]} Rg7 {[%emt 0:00:29]} 44. Nf4 {[%emt 0:00:04][%cal Of4d5]} Re4 {[%emt 0:01:14][%cal Oe4f4]} 45. Nxd5 $1 {[%emt 0:00:29]} cxd5 {[%emt 0:00:33]} (45... b6 $11 46. Rxb5 (46. Rxc6 $2 bxa5 47. Nf4 Rxf4 $19) (46. Nxf6 Re6 $14) (46. Nxb6 Reg4 $11) 46... cxb5) 46. Rxb5 $14 {[%emt 0:00:03][%mdl 4096] Endgame. KRR-KRR} Reg4 {[%emt 0:00:04]} 47. Rg1 {[%emt 0:00:04]} (47. Rxd5 $2 Rxg2+ 48. Kh3 Rxf2 $19) 47... Rc7 {[%emt 0:00:24] [#]} 48. Rc5 {[%emt 0:02:38]} ({Don't play} 48. Rxd5 $6 Rc2 $11) 48... Rxc5 {[%emt 0:01:00]} (48... Rd7 $16 {is a better defense.}) 49. dxc5 $16 {[%emt 0:00:03] KR-KR} Rg5 {[%emt 0:00:28]} 50. Rd1 {[%emt 0:00:19]} Rf5 {[%emt 0:00:33]} (50... Kg7 $142 51. Rd4 Kf8 52. Rxh4 Ke8) 51. Rd2 {[%emt 0:02:08]} Kg7 {[%emt 0:00:26]} 52. Kh3 {[%emt 0:00:15]} Kf7 {[%emt 0:00:09]} 53. Kxh4 {[%emt 0:00:57]} Ke6 {[%emt 0:00:14]} 54. f3 {[%emt 0:02:26]} Rg5 {[%emt 0:01:10]} 55. Kh3 {[%emt 0:01:10]} Re5 {[%emt 0:00:30]} 56. Rd3 {[%emt 0:00:03] Hoping for b4.} Kd7 $2 {[%emt 0:00:04]} (56... d4 $16 {keeps fighting.} 57. exd4 (57. Rxd4 Rxe3 58. Ra4 Rc3 $16) 57... Re2) 57. b4 $18 {[%emt 0:01:01]} Kc6 {[%emt 0:00:11]} 58. Rxa3 {[%emt 0:00:03]} Kb5 {[%emt 0:00:03]} 59. Rb3 {[%emt 0:00:56]} (59. Rd3 $18) 59... Kc4 $16 {[%emt 0:00:12]} 60. Kh4 {[%emt 0:01:58]} Rg5 {[%emt 0:00:29] [#]} 61. g3 $1 {[%emt 0:00:01]} Rg8 {[%emt 0:00:53]} 62. Ra3 {[%emt 0:01:28] Inhibits Ra8.} ({Stronger than} 62. Kxh5 Rxg3 63. f4 Rg2 $11) 62... Kxb4 {[%emt 0:01:30]} 63. Rb3+ {[%emt 0:00:02]} Kxc5 {[%emt 0:00:06]} 64. Rxb7 {[%emt 0:00:02]} Ra8 {[%emt 0:00:29]} (64... Re8 $16) 65. Rb2 $2 {[%emt 0:01:26]} (65. Kxh5 $18 {Threatens to win with g4.} Kc4 66. Kg4) 65... Ra3 $11 {[%emt 0:00:13] The position is equal.} 66. Re2 {[%emt 0:00:01]} Kc4 {[%emt 0:00:25]} 67. Kxh5 {[%emt 0:01:13]} Kd3 {[%emt 0:00:08]} 68. Re1 {[%emt 0:00:22]} Kd2 {[%emt 0:00:17]} 69. Rb1 {[%emt 0:00:44]} Kxe3 {[%emt 0:00:53]} 70. f4 {[%emt 0:00:02]} Kf3 {[%emt 0:01:30]} 71. Kg6 {[%emt 0:00:57]} Kxg3 {[%emt 0:00:28]} 72. f5 {[%emt 0:00:03]} Ra6 {[%emt 0:00:41]} 73. Rd1 {[%emt 0:00:14]} Rd6 $1 {[%emt 0:00:03]} 74. Kf7 {[%emt 0:00:02] aiming for Ke7.} Kf4 {[%emt 0:01:28][%cal Of4e5] ...Ke5! is the strong threat.} 75. Ke7 {[%emt 0:02:15]} Ra6 {[%emt 0:00:00]} 76. Rxd5 {[%emt 0:00:00][%cal Oa2a4] Black must now prevent a4!} Kg5 {[%emt 0:00:00] Black escapes into a draw.   Weighted Error Value: White=0.16 (very precise) /Black=0.19 (very precise) .  Loses game:     	---       	Black=2      Missed win:     	White=1     	---        Mistake:       	White=2     	Black=4      Inaccurate:     	White=3     	Black=3      OK:         	White=26    	Black=27     Best:        	White=5     	Black=5      Strong:       	White=2     	Black=1} 1/2-1/2

[Event "US Masters 2024"]
[Site "Charlotte"]
[Date "2024.11.28"]
[Round "1.22"]
[White "Duong, Thanh Nha"]
[Black "Woodward, Andy"]
[Result "0-1"]
[ECO "D38"]
[WhiteElo "2177"]
[BlackElo "2525"]
[Annotator "TA"]
[PlyCount "80"]
[EventDate "2024.09.23"]
[EventType "swiss"]
[EventCountry "USA"]
[SourceTitle "playchess.com"]
[Source "ChessBase"]
[SourceQuality "1"]
[TimeControl "5400+30"]

{[%evp 16,80,17,-1,26,-12,-11,-66,-63,-68,-50,-55,-27,-59,-61,-73,-68,-86,-85,-88,-88,-85,-79,-214,-201,-236,-238,-206,-230,-227,-243,-229,-222,-380,-349,-382,-383,-421,-410,-395,-410,-422,-400,-410,-412,-507,-482,-656,-647,-736,-731,-631,-497,-810,-803,-817,-808,-920,-937,-835,-820,-2082,-2040,-29983,-29983,-29992,-29989]} 1. Nf3 {[%emt 0:00:41]} d5 {[%emt 0:00:19]} 2. d4 {[%emt 0:00:37]} Nf6 {[%emt 0:00:30]} 3. c4 {[%emt 0:00:52]} e6 {[%emt 0:00:20]} 4. Nc3 {[%emt 0:00:48]} Nbd7 {[%emt 0:00:16]} 5. Bg5 {[%emt 0:00:53]} Bb4 {[%emt 0:00:37]} 6. cxd5 {[%emt 0:02:00]} exd5 {[%emt 0:00:13]} 7. e3 {[%emt 0:00:25]} c5 {[%emt 0:07:06]} 8. Bxf6 {[%emt 0:11:00]} Nxf6 {[%emt 0:17:58]} 9. Bb5+ {[%emt 0:00:48]} Kf8 {[%emt 0:01:49]} 10. O-O {[%emt 0:03:20]} (10. dxc5 {is more complex.} Qa5 11. a4 Bxc3+ 12. bxc3 Qxc3+ 13. Ke2) 10... c4 {[%emt 0:04:53]} 11. Ne2 {[%emt 0:04:57]} (11. Ba4 $11) 11... Bd6 $15 {[%emt 0:05:09] Black is slightly better.} 12. Ba4 {[%emt 0:01:19]} a6 {[%emt 0:03:49]} 13. Bc2 {[%emt 0:00:46]} Qc7 {[%emt 0:07:04]} 14. Re1 {[%emt 0:05:03]} b5 {[%emt 0:06:13]} 15. a3 {[%emt 0:00:39]} Bb7 {[%emt 0:01:02]} 16. Nc3 {[%emt 0:09:30]} Re8 {[%emt 0:02:12]} 17. Qb1 {[%emt 0:00:49]} Ne4 {[%emt 0:01:42]} 18. g3 {[%emt 0:04:18]} h5 {[%emt 0:01:54][%cal Oh5h4] Black is more active.} 19. Bxe4 {[%emt 0:10:02]} (19. Re2 $17) 19... dxe4 $19 {[%emt 0:00:17]} 20. Nh4 {[%emt 0:01:11]} Qd7 {[%emt 0:00:48] [#] Dodges Nf5. Threatens to win with ...g5. White is weak on the light squares} 21. f4 {[%emt 0:06:56]} exf3 {[%emt 0:05:11]} 22. Qf5 {[%emt 0:00:46]} Qxf5 {[%emt 0:00:40]} 23. Nxf5 {[%emt 0:00:08] Excellent horsemanship.} Bb8 {[%emt 0:00:06] aiming for ...g6.} 24. d5 $2 {[%emt 0:06:37]} (24. e4) 24... g5 {[%emt 0:00:56]} 25. Rad1 {[%emt 0:02:06]} Bc8 {[%emt 0:00:41]} 26. e4 {[%emt 0:06:37]} g4 {[%emt 0:01:05] [#] ...Bxf5 is the strong threat.} 27. Nh4 {[%emt 0:07:11]} Rh6 {[%emt 0:00:24]} 28. Kf2 {[%emt 0:02:04]} Be5 {[%emt 0:00:18]} 29. Rd2 {[%emt 0:00:31]} Rb6 {[%emt 0:00:09]} 30. Red1 {[%emt 0:01:04]} Bd6 {[%emt 0:00:07]} 31. Ra1 {[%emt 0:03:16]} a5 {[%emt 0:00:12]} 32. Nf5 {[%emt 0:00:58]} Bxf5 {[%emt 0:00:08]} 33. exf5 {[%emt 0:00:04]} b4 {[%emt 0:00:36]} 34. Na4 {[%emt 0:00:59]} (34. axb4 $142 axb4 35. Nb1) 34... Rbb8 {[%emt 0:00:23]} 35. Rc1 {[%emt 0:01:26]} Re4 {[%emt 0:00:09]} 36. Rdc2 {[%emt 0:00:58]} c3 {[%emt 0:00:11]} 37. axb4 {[%emt 0:00:51]} axb4 {[%emt 0:00:06]} 38. Ra1 {[%emt 0:02:50]} Ra8 {[%emt 0:00:24][%cal Oa8a4] White must now prevent ...Rxa4!} 39. b3 {[%emt 0:01:42]} Rae8 {[%emt 0:00:06]} 40. Raa2 {[%emt 0:01:31]} Be5 {[%emt 0:00:26] Black took control after the opening.   Weighted Error Value: White=0.83/Black=0.09 (flawless) .  Mistake:       	White=3     	---        Inaccurate:     	White=3     	Black=1      OK:         	White=4     	Black=12     Best:        	White=1     	Black=2} 0-1